[Event "Early-Titled-Tuesday-Blitz-January-23-2024"]
[Site "Chess.com"]
[Date "2024.01.23"]
[Round "3"]
[White "Andrey_Klymchuk"]
[Black "sergeikim"]
[Result "0-1"]
[WhiteElo "2759"]
[BlackElo "2528"]
[TimeControl "180+1"]
[EndTime "8:26:48 PST"]
[Termination "sergeikim won by checkmate"]

1. e4 {[%clk 0:03:00.9]} 1... e5 {[%clk 0:02:58.1]} 2. Nf3 {[%clk 0:03:00.5]}
2... Nc6 {[%clk 0:02:58]} 3. Bb5 {[%clk 0:03:01]} 3... a6 {[%clk 0:02:58.3]} 4.
Bxc6 {[%clk 0:03:01.2]} 4... dxc6 {[%clk 0:02:57.9]} 5. O-O {[%clk 0:03:01.9]}
5... f6 {[%clk 0:02:58.2]} 6. d4 {[%clk 0:03:01.8]} 6... exd4 {[%clk 0:02:58.6]}
7. Nxd4 {[%clk 0:03:02.5]} 7... Ne7 {[%clk 0:02:58.7]} 8. Nc3 {[%clk 0:03:00.5]}
8... Ng6 {[%clk 0:02:58.2]} 9. Be3 {[%clk 0:02:57.3]} 9... Bb4 {[%clk
0:02:57.7]} 10. f4 {[%clk 0:02:46]} 10... Bxc3 {[%clk 0:02:55]} 11. bxc3 {[%clk
0:02:45.5]} 11... O-O {[%clk 0:02:55]} 12. Qf3 {[%clk 0:02:36.3]} 12... Qe8
{[%clk 0:02:47.3]} 13. Rae1 {[%clk 0:02:31.2]} 13... Bd7 {[%clk 0:02:39.1]} 14.
Bc1 {[%clk 0:02:26.4]} 14... c5 {[%clk 0:02:35.1]} 15. Nf5 {[%clk 0:02:18.3]}
15... Bc6 {[%clk 0:02:29]} 16. Re3 {[%clk 0:02:04.1]} 16... Rd8 {[%clk
0:02:26.6]} 17. Qh5 {[%clk 0:02:01.1]} 17... Ne7 {[%clk 0:02:15.6]} 18. Nxe7+
{[%clk 0:01:58.2]} 18... Qxe7 {[%clk 0:02:15.2]} 19. f5 {[%clk 0:01:29.6]} 19...
Qf7 {[%clk 0:02:11.2]} 20. Qh4 {[%clk 0:01:27.9]} 20... Qxa2 {[%clk 0:02:06.7]}
21. Rh3 {[%clk 0:01:23]} 21... h6 {[%clk 0:02:06.1]} 22. Bxh6 {[%clk 0:01:12.4]}
22... gxh6 {[%clk 0:02:06]} 23. Qxh6 {[%clk 0:00:48.5]} 23... Kf7 {[%clk
0:02:05.1]} 24. Qg6+ {[%clk 0:00:47]} 24... Ke7 {[%clk 0:02:04.3]} 25. Rh7+
{[%clk 0:00:41.9]} 25... Rf7 {[%clk 0:02:03.9]} 26. e5 {[%clk 0:00:40.1]} 26...
Rxh7 {[%clk 0:01:51.9]} 27. Qxh7+ {[%clk 0:00:35.6]} 27... Qf7 {[%clk
0:01:21.6]} 28. exf6+ {[%clk 0:00:35.6]} 28... Kf8 {[%clk 0:01:20.5]} 29. Qh6+
{[%clk 0:00:28.6]} 29... Kg8 {[%clk 0:01:03.2]} 30. Qg5+ {[%clk 0:00:27.7]}
30... Kf8 {[%clk 0:01:02.3]} 31. Qh6+ {[%clk 0:00:21.6]} 31... Kg8 {[%clk
0:01:02]} 32. Rf4 {[%clk 0:00:16.9]} 32... Rd1+ {[%clk 0:00:58.7]} 33. Kf2
{[%clk 0:00:17.3]} 33... Rd2+ {[%clk 0:00:58.8]} 34. Ke3 {[%clk 0:00:17.5]}
34... Rxg2 {[%clk 0:00:57.3]} 35. Rh4 {[%clk 0:00:16.7]} 35... Qe8+ {[%clk
0:00:54.2]} 36. Kf4 {[%clk 0:00:17]} 36... Qe4# {[%clk 0:00:51.9]} 0-1

[Event "Early-Titled-Tuesday-Blitz-January-23-2024"]
[Site "Chess.com"]
[Date "2024.01.23"]
[Round "3"]
[White "malakismayil"]
[Black "DvaHrasta"]
[Result "0-1"]
[WhiteElo "2574"]
[BlackElo "2425"]
[TimeControl "180+1"]
[EndTime "8:26:53 PST"]
[Termination "DvaHrasta won by resignation"]

1. e4 {[%clk 0:02:40]} 1... c6 {[%clk 0:02:58.9]} 2. d4 {[%clk 0:02:39.2]} 2...
d5 {[%clk 0:02:58.9]} 3. Nc3 {[%clk 0:02:39.8]} 3... dxe4 {[%clk 0:02:58.5]} 4.
Nxe4 {[%clk 0:02:40.7]} 4... Nf6 {[%clk 0:02:58.9]} 5. Nxf6+ {[%clk 0:02:40.9]}
5... exf6 {[%clk 0:02:59.8]} 6. c3 {[%clk 0:02:41.7]} 6... Bd6 {[%clk 0:03:00]}
7. Bd3 {[%clk 0:02:42.3]} 7... O-O {[%clk 0:03:00.2]} 8. Ne2 {[%clk 0:02:43.2]}
8... Qc7 {[%clk 0:02:59.8]} 9. Qc2 {[%clk 0:02:44.1]} 9... h6 {[%clk 0:02:59.4]}
10. Bd2 {[%clk 0:02:44.6]} 10... Re8 {[%clk 0:02:57]} 11. O-O-O {[%clk
0:02:45.3]} 11... c5 {[%clk 0:02:57.3]} 12. c4 {[%clk 0:02:38.5]} 12... Nc6
{[%clk 0:02:54.1]} 13. d5 {[%clk 0:02:30.7]} 13... Ne5 {[%clk 0:02:50.2]} 14.
Nc3 {[%clk 0:02:30.3]} 14... a6 {[%clk 0:02:47.6]} 15. Rhe1 {[%clk 0:02:26.3]}
15... Bd7 {[%clk 0:02:37.2]} 16. Ne4 {[%clk 0:02:16.9]} 16... b5 {[%clk
0:02:32.9]} 17. g3 {[%clk 0:02:03.7]} 17... bxc4 {[%clk 0:02:26.3]} 18. Bxc4
{[%clk 0:02:04.3]} 18... Bb5 {[%clk 0:02:24.5]} 19. Bf1 {[%clk 0:01:38.9]} 19...
Nf3 {[%clk 0:02:16.3]} 20. Re3 {[%clk 0:01:35.8]} 20... Bxf1 {[%clk 0:01:56]}
21. Rxf1 {[%clk 0:01:36.7]} 21... Nxh2 {[%clk 0:01:54.6]} 22. Rfe1 {[%clk
0:01:34.7]} 22... Ng4 {[%clk 0:01:52.1]} 23. R3e2 {[%clk 0:01:33.8]} 23... Ne5
{[%clk 0:01:31]} 24. Bxh6 {[%clk 0:01:31.4]} 24... f5 {[%clk 0:01:20.6]} 25.
Nxd6 {[%clk 0:01:28.5]} 25... Qxd6 {[%clk 0:01:20.8]} 26. Bf4 {[%clk 0:01:26.2]}
26... f6 {[%clk 0:01:20.9]} 27. Qxf5 {[%clk 0:01:17.5]} 27... Qxd5 {[%clk
0:01:19.2]} 28. Bxe5 {[%clk 0:01:16.4]} 28... fxe5 {[%clk 0:01:16.9]} 29. Rxe5
{[%clk 0:01:15.2]} 29... Rxe5 {[%clk 0:01:16.4]} 30. Rxe5 {[%clk 0:01:02.4]}
30... Qxa2 {[%clk 0:01:12.6]} 31. Rxc5 {[%clk 0:00:53.2]} 31... Rd8 {[%clk
0:01:09.3]} 32. Rc8 {[%clk 0:00:06.6]} 32... Qa1+ {[%clk 0:01:04.2]} 33. Kc2
{[%clk 0:00:06.6]} 33... Qd1+ {[%clk 0:01:02.1]} 34. Kc3 {[%clk 0:00:07.1]}
34... Qc1+ {[%clk 0:01:02]} 35. Kb3 {[%clk 0:00:04.3]} 35... Qxc8 {[%clk
0:01:00.8]} 0-1

[Event "Early-Titled-Tuesday-Blitz-January-23-2024"]
[Site "Chess.com"]
[Date "2024.01.23"]
[Round "3"]
[White "Chernobay_Artem"]
[Black "Grandelicious"]
[Result "0-1"]
[WhiteElo "2609"]
[BlackElo "2902"]
[TimeControl "180+1"]
[EndTime "8:26:56 PST"]
[Termination "Grandelicious won by resignation"]

1. d4 {[%clk 0:03:00.9]} 1... Nf6 {[%clk 0:02:57.7]} 2. c4 {[%clk 0:03:01.2]}
2... d6 {[%clk 0:02:58.2]} 3. Nf3 {[%clk 0:03:01.2]} 3... g6 {[%clk 0:02:58.8]}
4. Nc3 {[%clk 0:03:01.1]} 4... Bg7 {[%clk 0:02:59.4]} 5. e4 {[%clk 0:03:01]}
5... O-O {[%clk 0:03:00.1]} 6. Be2 {[%clk 0:03:01.7]} 6... e5 {[%clk 0:02:59.5]}
7. O-O {[%clk 0:03:01.8]} 7... b6 {[%clk 0:02:58.6]} 8. Bg5 {[%clk 0:02:42.3]}
8... h6 {[%clk 0:02:45.7]} 9. Bh4 {[%clk 0:02:42]} 9... Nbd7 {[%clk 0:02:21.9]}
10. Qd2 {[%clk 0:02:26.4]} 10... exd4 {[%clk 0:02:17.7]} 11. Qxd4 {[%clk
0:01:48.6]} 11... Bb7 {[%clk 0:02:14]} 12. Qe3 {[%clk 0:01:32.8]} 12... Re8
{[%clk 0:02:10.1]} 13. Nd2 {[%clk 0:01:29.5]} 13... Nc5 {[%clk 0:02:00.8]} 14.
f4 {[%clk 0:00:51.3]} 14... Qd7 {[%clk 0:01:13.4]} 15. Bf3 {[%clk 0:00:24.3]}
15... d5 {[%clk 0:00:58.1]} 16. Bxf6 {[%clk 0:00:20.8]} 16... d4 {[%clk
0:00:56.2]} 17. Qe2 {[%clk 0:00:10.1]} 17... Bxf6 {[%clk 0:00:53.6]} 18. Nd5
{[%clk 0:00:10.4]} 18... Bxd5 {[%clk 0:00:51.9]} 19. cxd5 {[%clk 0:00:10.4]}
19... d3 {[%clk 0:00:51.7]} 20. Qf2 {[%clk 0:00:05.2]} 20... Bxb2 {[%clk
0:00:49.7]} 21. Rab1 {[%clk 0:00:05.7]} 21... Bc3 {[%clk 0:00:49.5]} 22. e5
{[%clk 0:00:04.7]} 22... Qa4 {[%clk 0:00:50.1]} 23. Kh1 {[%clk 0:00:04.4]} 23...
Qxf4 {[%clk 0:00:49.7]} 24. d6 {[%clk 0:00:03.5]} 24... Qxd2 {[%clk 0:00:41.5]}
25. Qxd2 {[%clk 0:00:01.9]} 25... Bxd2 {[%clk 0:00:41.8]} 26. Bxa8 {[%clk
0:00:01.6]} 26... Rxa8 {[%clk 0:00:42.3]} 27. dxc7 {[%clk 0:00:01.8]} 27... Rc8
{[%clk 0:00:42.7]} 0-1

[Event "Early-Titled-Tuesday-Blitz-January-23-2024"]
[Site "Chess.com"]
[Date "2024.01.23"]
[Round "3"]
[White "Mihajlovskij"]
[Black "TheoSlade"]
[Result "1-0"]
[WhiteElo "2231"]
[BlackElo "2451"]
[TimeControl "180+1"]
[EndTime "8:26:56 PST"]
[Termination "Mihajlovskij won by resignation"]

1. e4 {[%clk 0:03:00.9]} 1... e5 {[%clk 0:03:00.2]} 2. Nf3 {[%clk 0:03:00.1]}
2... Nc6 {[%clk 0:03:00.9]} 3. Bb5 {[%clk 0:02:56.6]} 3... g6 {[%clk 0:03:01.4]}
4. O-O {[%clk 0:02:53.9]} 4... Bg7 {[%clk 0:03:00.2]} 5. c3 {[%clk 0:02:50.7]}
5... a6 {[%clk 0:03:00.3]} 6. Ba4 {[%clk 0:02:50]} 6... b5 {[%clk 0:02:58.8]} 7.
Bb3 {[%clk 0:02:49.4]} 7... Nge7 {[%clk 0:02:56.4]} 8. d4 {[%clk 0:02:47]} 8...
exd4 {[%clk 0:02:57.3]} 9. cxd4 {[%clk 0:02:46.5]} 9... d6 {[%clk 0:02:54.2]}
10. Bg5 {[%clk 0:02:42.5]} 10... h6 {[%clk 0:02:44.1]} 11. Be3 {[%clk
0:02:24.4]} 11... Bg4 {[%clk 0:02:37.1]} 12. h3 {[%clk 0:02:13.4]} 12... Bxf3
{[%clk 0:02:37.3]} 13. Qxf3 {[%clk 0:02:12.5]} 13... O-O {[%clk 0:02:38]} 14.
Rd1 {[%clk 0:02:08.1]} 14... Na5 {[%clk 0:02:38.6]} 15. Bc2 {[%clk 0:02:05.9]}
15... Nc4 {[%clk 0:02:36.4]} 16. Bc1 {[%clk 0:02:04.7]} 16... Qb8 {[%clk
0:02:14.2]} 17. b3 {[%clk 0:02:01.2]} 17... Na5 {[%clk 0:02:11.1]} 18. Bb2
{[%clk 0:01:57.8]} 18... c5 {[%clk 0:02:10.3]} 19. Nc3 {[%clk 0:01:47.1]} 19...
Bxd4 {[%clk 0:02:08]} 20. Rxd4 {[%clk 0:01:44.4]} 20... cxd4 {[%clk 0:02:08.1]}
21. Ne2 {[%clk 0:01:41.2]} 21... Nac6 {[%clk 0:02:04.9]} 22. Qf6 {[%clk
0:01:39.3]} 22... Kh7 {[%clk 0:01:21.1]} 23. Nxd4 {[%clk 0:01:34.9]} 23... Ne5
{[%clk 0:01:10.8]} 24. Qxe7 {[%clk 0:01:21.2]} 24... Qd8 {[%clk 0:01:01.3]} 25.
Qb7 {[%clk 0:01:14.9]} 25... Qd7 {[%clk 0:00:54.3]} 26. Qd5 {[%clk 0:01:10.5]}
26... Rac8 {[%clk 0:00:44.7]} 27. Ba3 {[%clk 0:01:09.7]} 27... Rfd8 {[%clk
0:00:32.8]} 28. f4 {[%clk 0:01:01.7]} 28... Nc6 {[%clk 0:00:32.6]} 29. Nxc6
{[%clk 0:01:00.9]} 29... Rxc6 {[%clk 0:00:33.5]} 30. Bd3 {[%clk 0:01:00.4]}
30... Rdc8 {[%clk 0:00:25.5]} 31. Rd1 {[%clk 0:00:56.5]} 31... Qa7+ {[%clk
0:00:23.9]} 32. Kh2 {[%clk 0:00:54.9]} 32... Qe3 {[%clk 0:00:24.5]} 33. Qxf7+
{[%clk 0:00:51.8]} 33... Kh8 {[%clk 0:00:25.2]} 34. Bb2+ {[%clk 0:00:51.2]}
34... Rc3 {[%clk 0:00:25.9]} 35. Qf6+ {[%clk 0:00:50.7]} 35... Kh7 {[%clk
0:00:25.1]} 36. Bxc3 {[%clk 0:00:50.2]} 36... Rxc3 {[%clk 0:00:25.4]} 37. Qxc3
{[%clk 0:00:48.7]} 37... Qxf4+ {[%clk 0:00:26.1]} 38. Kh1 {[%clk 0:00:48]} 1-0

[Event "Early-Titled-Tuesday-Blitz-January-23-2024"]
[Site "Chess.com"]
[Date "2024.01.23"]
[Round "3"]
[White "chessS1r"]
[Black "dmosesov"]
[Result "1-0"]
[WhiteElo "2473"]
[BlackElo "2628"]
[TimeControl "180+1"]
[EndTime "8:27:03 PST"]
[Termination "chessS1r won on time"]

1. d4 {[%clk 0:03:00.9]} 1... Nf6 {[%clk 0:02:59.9]} 2. c4 {[%clk 0:02:59.8]}
2... c5 {[%clk 0:02:49.8]} 3. d5 {[%clk 0:02:57.8]} 3... e6 {[%clk 0:02:49.4]}
4. Nf3 {[%clk 0:02:57.5]} 4... exd5 {[%clk 0:02:49.4]} 5. cxd5 {[%clk
0:02:58.4]} 5... d6 {[%clk 0:02:50]} 6. Bf4 {[%clk 0:02:58.2]} 6... g6 {[%clk
0:02:49.4]} 7. e4 {[%clk 0:02:57.9]} 7... Bg7 {[%clk 0:02:33.4]} 8. Nc3 {[%clk
0:02:45.7]} 8... O-O {[%clk 0:02:28.7]} 9. Be2 {[%clk 0:02:44.6]} 9... b5 {[%clk
0:02:03]} 10. Bxb5 {[%clk 0:02:29.7]} 10... Nxe4 {[%clk 0:01:57.6]} 11. Nxe4
{[%clk 0:02:26.4]} 11... Qa5+ {[%clk 0:01:57]} 12. Qd2 {[%clk 0:02:15.5]} 12...
Qxb5 {[%clk 0:01:55.5]} 13. Nxd6 {[%clk 0:02:00.2]} 13... Qxb2 {[%clk
0:01:41.8]} 14. Qxb2 {[%clk 0:02:00.1]} 14... Bxb2 {[%clk 0:01:42.7]} 15. Rb1
{[%clk 0:02:00.7]} 15... Bc3+ {[%clk 0:01:41.6]} 16. Bd2 {[%clk 0:02:00.7]}
16... Bxd2+ {[%clk 0:01:24.4]} 17. Kxd2 {[%clk 0:02:01.6]} 17... Na6 {[%clk
0:01:08.2]} 18. Kc3 {[%clk 0:01:55.6]} 18... Nb4 {[%clk 0:00:55.9]} 19. Kc4
{[%clk 0:01:55.9]} 19... Rd8 {[%clk 0:00:24.8]} 20. a3 {[%clk 0:01:04]} 20...
Ba6+ {[%clk 0:00:22.5]} 21. Kxc5 {[%clk 0:01:01.1]} 21... Nd3+ {[%clk
0:00:22.8]} 22. Kc6 {[%clk 0:00:55.9]} 22... Nxf2 {[%clk 0:00:21.2]} 23. Rhe1
{[%clk 0:00:51.3]} 23... Bd3 {[%clk 0:00:20.2]} 24. Rb7 {[%clk 0:00:46.2]} 24...
Rf8 {[%clk 0:00:18]} 25. Ree7 {[%clk 0:00:42.2]} 25... Ng4 {[%clk 0:00:11.6]}
26. Ng5 {[%clk 0:00:40.5]} 26... Ba6 {[%clk 0:00:00.3]} 27. Rbc7 {[%clk
0:00:36.8]} 1-0

[Event "Early-Titled-Tuesday-Blitz-January-23-2024"]
[Site "Chess.com"]
[Date "2024.01.23"]
[Round "3"]
[White "Msb2"]
[Black "Martial2008"]
[Result "1-0"]
[WhiteElo "3057"]
[BlackElo "2673"]
[TimeControl "180+1"]
[EndTime "8:27:04 PST"]
[Termination "Msb2 won by resignation"]

1. d4 {[%clk 0:03:00.9]} 1... Nf6 {[%clk 0:02:56.7]} 2. c4 {[%clk 0:03:01.5]}
2... e6 {[%clk 0:02:57.1]} 3. Nc3 {[%clk 0:03:01.8]} 3... Bb4 {[%clk 0:02:57.2]}
4. e3 {[%clk 0:03:02.2]} 4... O-O {[%clk 0:02:55.9]} 5. Bd2 {[%clk 0:03:02.7]}
5... d5 {[%clk 0:02:53.8]} 6. Nf3 {[%clk 0:03:03.1]} 6... b6 {[%clk 0:02:53.1]}
7. cxd5 {[%clk 0:03:03.7]} 7... exd5 {[%clk 0:02:53.1]} 8. Rc1 {[%clk
0:03:04.4]} 8... a6 {[%clk 0:02:51.3]} 9. Bd3 {[%clk 0:03:04.8]} 9... Bb7 {[%clk
0:02:51.6]} 10. O-O {[%clk 0:03:05.1]} 10... Bd6 {[%clk 0:02:52.1]} 11. Ne5
{[%clk 0:03:05.4]} 11... c5 {[%clk 0:02:52.8]} 12. f4 {[%clk 0:03:06]} 12... Nc6
{[%clk 0:02:53.5]} 13. Ng4 {[%clk 0:03:06.8]} 13... Be7 {[%clk 0:02:48.2]} 14.
Nxf6+ {[%clk 0:03:07.2]} 14... Bxf6 {[%clk 0:02:48.1]} 15. dxc5 {[%clk
0:03:08.1]} 15... bxc5 {[%clk 0:02:46.7]} 16. b3 {[%clk 0:03:08.8]} 16... Nb4
{[%clk 0:02:14.6]} 17. Bb1 {[%clk 0:03:06.7]} 17... Re8 {[%clk 0:02:12.3]} 18.
Na4 {[%clk 0:03:05.6]} 18... d4 {[%clk 0:02:05.8]} 19. Nxc5 {[%clk 0:02:55.1]}
19... dxe3 {[%clk 0:02:02.7]} 20. Bxb4 {[%clk 0:02:40.1]} 20... e2 {[%clk
0:01:44]} 21. Qxd8 {[%clk 0:02:39.8]} 21... Raxd8 {[%clk 0:01:42.3]} 22. Nxb7
{[%clk 0:02:33.8]} 22... exf1=Q+ {[%clk 0:01:40.8]} 23. Kxf1 {[%clk 0:02:34.7]}
23... Rb8 {[%clk 0:01:33.2]} 24. Nd6 {[%clk 0:02:30.5]} 24... Red8 {[%clk
0:01:30.5]} 25. Ba3 {[%clk 0:02:27.8]} 25... Be7 {[%clk 0:01:29.9]} 26. Nc4
{[%clk 0:02:27.8]} 26... Bxa3 {[%clk 0:01:22.9]} 27. Nxa3 {[%clk 0:02:28.7]}
27... Rd4 {[%clk 0:01:23.3]} 28. g3 {[%clk 0:02:28.7]} 28... Rbd8 {[%clk
0:01:22.2]} 29. Nc4 {[%clk 0:02:28.8]} 29... Rd1+ {[%clk 0:01:22.2]} 30. Rxd1
{[%clk 0:02:16.7]} 30... Rxd1+ {[%clk 0:01:23.1]} 31. Ke2 {[%clk 0:02:17.6]}
31... Rxb1 {[%clk 0:01:23.3]} 32. Kd3 {[%clk 0:02:16]} 32... Rh1 {[%clk
0:01:18.2]} 33. a4 {[%clk 0:02:09.6]} 33... Rxh2 {[%clk 0:01:17.9]} 34. b4
{[%clk 0:02:08.7]} 34... Rh3 {[%clk 0:01:16.3]} 35. b5 {[%clk 0:02:06.8]} 35...
Rxg3+ {[%clk 0:01:14.5]} 36. Kc2 {[%clk 0:02:07.3]} 36... axb5 {[%clk
0:01:12.9]} 37. axb5 {[%clk 0:02:08.2]} 37... Rg2+ {[%clk 0:00:28.6]} 38. Kc3
{[%clk 0:02:07.9]} 38... Re2 {[%clk 0:00:25.9]} 39. Ne5 {[%clk 0:01:59.4]} 39...
Re1 {[%clk 0:00:20.8]} 40. Kc2 {[%clk 0:01:55.4]} 40... Re2+ {[%clk 0:00:18.5]}
41. Kb3 {[%clk 0:01:55.1]} 41... Re1 {[%clk 0:00:12.9]} 42. Kb2 {[%clk
0:01:55.6]} 42... Re4 {[%clk 0:00:13.5]} 43. Kb3 {[%clk 0:01:55.5]} 43... Rxf4
{[%clk 0:00:13.2]} 44. b6 {[%clk 0:01:43.7]} 44... Rd4 {[%clk 0:00:13.2]} 45.
Nc6 {[%clk 0:01:41.1]} 45... Re4 {[%clk 0:00:11.9]} 46. b7 {[%clk 0:01:38.9]}
46... Re8 {[%clk 0:00:12.2]} 47. Ne7+ {[%clk 0:01:39.5]} 47... Kf8 {[%clk
0:00:07]} 48. Nc8 {[%clk 0:01:40.4]} 48... Re1 {[%clk 0:00:06.7]} 49. Kc2 {[%clk
0:01:38.3]} 49... Re2+ {[%clk 0:00:06.9]} 50. Kc3 {[%clk 0:01:37.3]} 50... Re3+
{[%clk 0:00:07.4]} 51. Kc4 {[%clk 0:01:37.7]} 51... Re4+ {[%clk 0:00:07.7]} 52.
Kc5 {[%clk 0:01:34.5]} 52... Re5+ {[%clk 0:00:07.9]} 53. Kc6 {[%clk 0:01:35.2]}
53... Re6+ {[%clk 0:00:04.2]} 54. Nd6 {[%clk 0:01:35.2]} 54... Ke7 {[%clk
0:00:02.6]} 55. b8=Q {[%clk 0:01:35.4]} 55... h5 {[%clk 0:00:01.9]} 56. Qe8+
{[%clk 0:01:35.1]} 56... Kf6 {[%clk 0:00:02.3]} 57. Qxf7+ {[%clk 0:01:36]} 57...
Ke5 {[%clk 0:00:03]} 58. Qf5+ {[%clk 0:01:36.3]} 58... Kd4 {[%clk 0:00:03.3]}
59. Qxe6 {[%clk 0:01:37.1]} 1-0

[Event "Early-Titled-Tuesday-Blitz-January-23-2024"]
[Site "Chess.com"]
[Date "2024.01.23"]
[Round "3"]
[White "Der_Balak_3Halak"]
[Black "francyIM"]
[Result "0-1"]
[WhiteElo "2316"]
[BlackElo "2804"]
[TimeControl "180+1"]
[EndTime "8:27:04 PST"]
[Termination "francyIM won by resignation"]

1. e4 {[%clk 0:02:48.2]} 1... c6 {[%clk 0:02:51.2]} 2. Nf3 {[%clk 0:02:46]} 2...
Na6 {[%clk 0:02:52.1]} 3. d4 {[%clk 0:02:43.4]} 3... d5 {[%clk 0:02:52]} 4. Nc3
{[%clk 0:02:40.2]} 4... Nc7 {[%clk 0:02:48.9]} 5. Bf4 {[%clk 0:02:37.9]} 5...
Ne6 {[%clk 0:02:48.6]} 6. Bg3 {[%clk 0:02:36.4]} 6... dxe4 {[%clk 0:02:48]} 7.
Nxe4 {[%clk 0:02:37.3]} 7... Nf6 {[%clk 0:02:48.9]} 8. Bd3 {[%clk 0:02:34.5]}
8... Nxd4 {[%clk 0:02:44.9]} 9. Nxf6+ {[%clk 0:02:23.5]} 9... exf6 {[%clk
0:02:44.1]} 10. Nxd4 {[%clk 0:02:19.5]} 10... Qxd4 {[%clk 0:02:43.4]} 11. O-O
{[%clk 0:02:18]} 11... Be7 {[%clk 0:02:43.5]} 12. Re1 {[%clk 0:01:56.6]} 12...
Be6 {[%clk 0:02:40.8]} 13. a4 {[%clk 0:01:39.4]} 13... Rd8 {[%clk 0:02:20.7]}
14. a5 {[%clk 0:01:23.9]} 14... O-O {[%clk 0:02:18.6]} 15. a6 {[%clk 0:00:53.5]}
15... b6 {[%clk 0:02:08.4]} 16. Re3 {[%clk 0:00:17.1]} 16... Qxb2 {[%clk
0:02:04.4]} 17. Ra4 {[%clk 0:00:17.6]} 17... g6 {[%clk 0:02:00.9]} 18. Rh4
{[%clk 0:00:16.4]} 18... f5 {[%clk 0:02:00.4]} 19. Be5 {[%clk 0:00:15.5]} 19...
Qxe5 {[%clk 0:01:45.5]} 20. Rxe5 {[%clk 0:00:15.1]} 20... Bxh4 {[%clk
0:01:46.1]} 21. Qf3 {[%clk 0:00:13.6]} 21... Bd5 {[%clk 0:01:43]} 22. Qh3 {[%clk
0:00:12.5]} 22... Bf6 {[%clk 0:01:43.2]} 23. Re3 {[%clk 0:00:11.7]} 23... Rfe8
{[%clk 0:01:41.5]} 24. Bxf5 {[%clk 0:00:09.1]} 24... gxf5 {[%clk 0:01:38.1]} 25.
Qxf5 {[%clk 0:00:08.9]} 25... Bg7 {[%clk 0:01:30.9]} 26. h4 {[%clk 0:00:07.8]}
26... Rxe3 {[%clk 0:01:30.1]} 27. fxe3 {[%clk 0:00:08.7]} 27... h6 {[%clk
0:01:30.1]} 28. Kf2 {[%clk 0:00:06.3]} 28... Bc4 {[%clk 0:01:28.2]} 29. g4
{[%clk 0:00:04.8]} 29... Bxa6 {[%clk 0:01:26.9]} 30. g5 {[%clk 0:00:04.4]} 30...
hxg5 {[%clk 0:01:27.8]} 31. hxg5 {[%clk 0:00:04.5]} 31... Bc8 {[%clk 0:01:28.2]}
32. Qf4 {[%clk 0:00:03.1]} 32... Be6 {[%clk 0:01:27.7]} 33. c4 {[%clk
0:00:01.4]} 33... Rc8 {[%clk 0:01:21]} 34. Qd6 {[%clk 0:00:01.1]} 34... Bxc4
{[%clk 0:01:20.6]} 35. g6 {[%clk 0:00:01.1]} 35... fxg6 {[%clk 0:01:20.4]} 36.
Qxg6 {[%clk 0:00:02]} 36... Bf7 {[%clk 0:01:14.1]} 37. Qe4 {[%clk 0:00:02.6]}
37... Bd5 {[%clk 0:01:12.8]} 38. Qe7 {[%clk 0:00:02.7]} 38... a5 {[%clk
0:01:12.1]} 39. e4 {[%clk 0:00:02.9]} 39... Bf7 {[%clk 0:01:11.5]} 40. Qd7
{[%clk 0:00:03.1]} 40... Rf8 {[%clk 0:01:10.9]} 41. Qxc6 {[%clk 0:00:03.5]}
41... Bd5+ {[%clk 0:01:10.8]} 0-1

[Event "Early-Titled-Tuesday-Blitz-January-23-2024"]
[Site "Chess.com"]
[Date "2024.01.23"]
[Round "3"]
[White "Hikaru"]
[Black "monomita"]
[Result "1-0"]
[WhiteElo "3306"]
[BlackElo "2829"]
[TimeControl "180+1"]
[EndTime "8:27:05 PST"]
[Termination "Hikaru won on time"]

1. Nf3 {[%clk 0:03:00.9]} 1... Nf6 {[%clk 0:02:58.7]} 2. b3 {[%clk 0:02:59.5]}
2... d5 {[%clk 0:02:57.8]} 3. c4 {[%clk 0:02:59.8]} 3... dxc4 {[%clk 0:02:53.5]}
4. bxc4 {[%clk 0:02:58.3]} 4... e5 {[%clk 0:02:53.8]} 5. Bb2 {[%clk 0:02:56.4]}
5... e4 {[%clk 0:02:53]} 6. Nd4 {[%clk 0:02:56.8]} 6... Bc5 {[%clk 0:02:51.1]}
7. Nb3 {[%clk 0:02:56.3]} 7... Be7 {[%clk 0:02:42.9]} 8. g3 {[%clk 0:02:56.2]}
8... Be6 {[%clk 0:02:40.6]} 9. Nd4 {[%clk 0:02:51.9]} 9... Bxc4 {[%clk
0:02:15.1]} 10. Qa4+ {[%clk 0:02:51.6]} 10... b5 {[%clk 0:02:15.4]} 11. Nxb5
{[%clk 0:02:52.3]} 11... Bxb5 {[%clk 0:02:14.4]} 12. Qxb5+ {[%clk 0:02:53.2]}
12... Nbd7 {[%clk 0:02:07.7]} 13. Qa4 {[%clk 0:02:52.5]} 13... O-O {[%clk
0:02:05.1]} 14. Bg2 {[%clk 0:02:52.2]} 14... Rb8 {[%clk 0:01:57]} 15. Qc2 {[%clk
0:02:52.1]} 15... Nc5 {[%clk 0:01:52.6]} 16. Nc3 {[%clk 0:02:42.8]} 16... Ne6
{[%clk 0:01:22.7]} 17. Nxe4 {[%clk 0:02:14.8]} 17... Nxe4 {[%clk 0:01:22.1]} 18.
Bxe4 {[%clk 0:02:15.7]} 18... Nd4 {[%clk 0:01:00.9]} 19. Bxd4 {[%clk 0:01:52]}
19... Qxd4 {[%clk 0:01:00.2]} 20. Rb1 {[%clk 0:01:47.7]} 20... Rxb1+ {[%clk
0:00:36]} 21. Qxb1 {[%clk 0:01:48.6]} 21... Bb4 {[%clk 0:00:35.8]} 22. O-O
{[%clk 0:01:45.4]} 22... Qxd2 {[%clk 0:00:27.1]} 23. Bxh7+ {[%clk 0:01:38.7]}
23... Kh8 {[%clk 0:00:26.7]} 24. Bd3 {[%clk 0:01:39.6]} 24... Bd6 {[%clk
0:00:23.9]} 25. Rc1 {[%clk 0:01:35.6]} 25... Qa5 {[%clk 0:00:20.2]} 26. Rc2
{[%clk 0:01:28.8]} 26... g6 {[%clk 0:00:19]} 27. Rb2 {[%clk 0:01:28.9]} 27...
Kg7 {[%clk 0:00:18.5]} 28. Rb5 {[%clk 0:01:27.9]} 28... Qc3 {[%clk 0:00:18.6]}
29. Rb3 {[%clk 0:01:27.5]} 29... Qd4 {[%clk 0:00:17.8]} 30. e3 {[%clk
0:01:26.2]} 30... Qe5 {[%clk 0:00:12.6]} 31. Qc2 {[%clk 0:01:25.4]} 31... Rh8
{[%clk 0:00:09.9]} 32. Rb5 {[%clk 0:01:18.6]} 32... Qa1+ {[%clk 0:00:08.6]} 33.
Kg2 {[%clk 0:01:19]} 33... Rh5 {[%clk 0:00:06.3]} 34. Rxh5 {[%clk 0:01:15]}
34... gxh5 {[%clk 0:00:07.2]} 35. h4 {[%clk 0:01:15.1]} 35... Qe5 {[%clk
0:00:05.8]} 36. Be4 {[%clk 0:01:15.3]} 36... c5 {[%clk 0:00:05]} 37. Bf3 {[%clk
0:01:14.8]} 37... Be7 {[%clk 0:00:03]} 38. Qa4 {[%clk 0:01:15]} 38... Qc7 {[%clk
0:00:01.2]} 39. Bxh5 {[%clk 0:01:13.9]} 39... c4 {[%clk 0:00:00.7]} 40. Bf3
{[%clk 0:01:12.1]} 1-0